{"text_format":"3","workbook":"xlsx","n_sheets":2,"sheets":["Fattura","Configurazione società"],"not_rendered":{"images":1,"defined_names":27},"read":"whole","date_system":"1900"}

{"sheet":"Fattura","index":0,"n_rows":35,"n_cols":7,"rows_kept":35,"merged":[[1,3,2,4],[3,3,3,4],[4,3,4,4],[5,3,5,4],[23,1,23,3],[24,1,24,3],[25,1,25,3],[26,1,26,3]]}
[null,"FATTURA","0005"]
[null,{"$f":"TODAY()","v":"2022-04-01"},null,{"$f":"TotaleFattura","v":79.65},null," ","Configurazione società"]
[null,"SCADENZA PAGAMENTO:",{"$f":"TODAY()+15","v":"2022-04-16"},null,null," "]
[null,"PALMIRA LOGGIA",null,"ADVENTURE WORKS"]
[null,"Fabrikam, Inc.",null,"Via Martedì 23456"]
[null,"Via Lunedì, 1234",null,"20100 Milano"]
[null,"40100 Bologna"]
[null,"QUANTITÀ","DETTAGLI","PREZZO UNITARIO","TOTALE RIGA"]
[null,2,"Widget",14.95,{"$f":"IFERROR(DettagliFattura[[#This Row],[PREZZO UNITARIO]]*DettagliFattura[[#This Row],[QUANTITÀ]],\"\")","v":{"v":29.9,"d":"29.90"}}]
[null,5,"Rondelle",9.95,{"$f":"IFERROR(DettagliFattura[[#This Row],[PREZZO UNITARIO]]*DettagliFattura[[#This Row],[QUANTITÀ]],\"\")","v":49.75}]
[{"$nulls":4},{"$f":"IFERROR(DettagliFattura[[#This Row],[PREZZO UNITARIO]]*DettagliFattura[[#This Row],[QUANTITÀ]],\"\")","v":0}]
[{"$nulls":4},{"$f":"IFERROR(DettagliFattura[[#This Row],[PREZZO UNITARIO]]*DettagliFattura[[#This Row],[QUANTITÀ]],\"\")","v":0}]
[{"$nulls":4},{"$f":"IFERROR(DettagliFattura[[#This Row],[PREZZO UNITARIO]]*DettagliFattura[[#This Row],[QUANTITÀ]],\"\")","v":0}]
[{"$nulls":4},{"$f":"IFERROR(DettagliFattura[[#This Row],[PREZZO UNITARIO]]*DettagliFattura[[#This Row],[QUANTITÀ]],\"\")","v":0}]
[{"$nulls":4},{"$f":"IFERROR(DettagliFattura[[#This Row],[PREZZO UNITARIO]]*DettagliFattura[[#This Row],[QUANTITÀ]],\"\")","v":0}]
[{"$nulls":4},{"$f":"IFERROR(DettagliFattura[[#This Row],[PREZZO UNITARIO]]*DettagliFattura[[#This Row],[QUANTITÀ]],\"\")","v":0}]
[{"$nulls":4},{"$f":"IFERROR(DettagliFattura[[#This Row],[PREZZO UNITARIO]]*DettagliFattura[[#This Row],[QUANTITÀ]],\"\")","v":0}]
[{"$nulls":4},{"$f":"IFERROR(DettagliFattura[[#This Row],[PREZZO UNITARIO]]*DettagliFattura[[#This Row],[QUANTITÀ]],\"\")","v":0}]
[{"$nulls":4},{"$f":"IFERROR(DettagliFattura[[#This Row],[PREZZO UNITARIO]]*DettagliFattura[[#This Row],[QUANTITÀ]],\"\")","v":0}]
[{"$nulls":4},{"$f":"IFERROR(DettagliFattura[[#This Row],[PREZZO UNITARIO]]*DettagliFattura[[#This Row],[QUANTITÀ]],\"\")","v":0}]
[{"$nulls":4},{"$f":"IFERROR(DettagliFattura[[#This Row],[PREZZO UNITARIO]]*DettagliFattura[[#This Row],[QUANTITÀ]],\"\")","v":0}]
[{"$nulls":4},{"$f":"IFERROR(DettagliFattura[[#This Row],[PREZZO UNITARIO]]*DettagliFattura[[#This Row],[QUANTITÀ]],\"\")","v":0}]
[{"$nulls":4},{"$f":"IFERROR(DettagliFattura[[#This Row],[PREZZO UNITARIO]]*DettagliFattura[[#This Row],[QUANTITÀ]],\"\")","v":0}]
[null,"Sconto"]
[null,"Totale netto",null,null,{"$f":"SUM(DettagliFattura[TOTALE RIGA])-E24","v":{"v":79.65,"d":"€ 79.65"}}]
[null,"IVA"]
[null,{"$f":"REPT(ConfigurazioneSocietà_AbbreviazioneValuta,LEN(ConfigurazioneSocietà_AbbreviazioneValuta)>0) & \" TOTALE\"","v":"EUR TOTALE"},null,null,{"$f":"IFERROR(E25+E26, \"\")","v":{"v":79.65,"d":"€ 79.65"}}]
[null,"DETTAGLI PAGAMENTI",null,null,"ALTRE INFORMAZIONI"]
[null,"Nome del beneficiario:",{"$f":" ConfigurazioneSocietà_NomeBeneficiarioBanca","v":"Adventure Works"},null,{"$f":"IFERROR(ConfigurazioneSocietà_Nome,\"\")","v":"Gerolamo Iadanza"}]
[null,"Nome della banca:",{"$f":"ConfigurazioneSocietà_NomeBanca","v":"Woodgrove Bank"},null,{"$f":"IFERROR(\"Telefono: \" & ConfigurazioneSocietà_Telefono,\"\")","v":"Telefono: 425-555-0150"}]
[null,"Indirizzo della banca:",{"$f":"ConfigurazioneSocietà_IndirizzoBanca","v":"Piazzale Roma 1, 20100 Milano"},null,{"$f":"IFERROR(\"Fax: \" & ConfigurazioneSocietà_Fax,\"\")","v":"Fax: 425-555-0151"}]
[null,"Numero di conto:",{"$f":"ConfigurazioneSocietà_ContoBancario","v":1234567},null,{"$f":"IFERROR(ConfigurazioneSocietà_URL,\"\")","v":"Adventure-Works.com"}]
[null,"Codice SWIFT",{"$f":"ConfigurazioneSocietà_CodiceBanca","v":9876543210},null,{"$f":"IFERROR(ConfigurazioneSocietà_PostaElettronica,\"\")","v":"Accounting@Adventure-Works.com"}]
[null,"Riferimento pagamento:",{"$f":"VisualizzazioneNumeroFattura","v":"0005"},null,{"$f":"IFERROR(IF(LEN(Client_PO),\"Contract/PO: \" & Client_PO,\"\"),\"\")","v":""}]
[null,{"$f":"UPPER(\"Il pagamento deve essere effettuato tramite bonifico bancario o assegno intestato a \" & ConfigurazioneSocietà_BeneficiarioAssegno & \".\")","v":"IL PAGAMENTO DEVE ESSERE EFFETTUATO TRAMITE BONIFICO BANCARIO O ASSEGNO INTESTATO A ADVENTURE WORKS."}]

{"sheet":"Configurazione società","index":1,"n_rows":20,"n_cols":5,"rows_kept":20}
[null,"CONFIGURAZIONE SOCIETÀ"]
[null,"DATI DELLA SOCIETÀ CHE EMETTE LA FATTURA","VALORE",null,"Fattura"]
[null,"Nome","Gerolamo Iadanza"]
[null,"Nome società","ADVENTURE WORKS"]
[null,"Riga indirizzo 1","Via Martedì 23456"]
[null,"Riga indirizzo 2","20100 Milano"]
[null,"Riga indirizzo 3"]
[null,"Riga indirizzo 4"]
[null,"Riga indirizzo 5"]
[null,"Telefono","425-555-0150"]
[null,"Fax","425-555-0151"]
[null,"Sito Web","Adventure-Works.com"]
[null,"Indirizzo di posta elettronica","Accounting@Adventure-Works.com"]
[null,"Abbreviazione valuta","EUR"]
[null,"Nome del beneficiario per il bonifico","Adventure Works"]
[null,"Nome della banca","Woodgrove Bank"]
[null,"Indirizzo della banca","Piazzale Roma 1, 20100 Milano"]
[null,"Numero di conto",1234567]
[null,"Codice SWIFT",9876543210]
[null,"Gli assegni devono essere intestati a","Adventure Works"]